Workbook

Sheet COTAÇÃO GERAL
C1: MINISTÉRIO DA INTEGRAÇÃO E DO DESENVOLVIMENTO REGIONAL (MIDR)
C2: COMPANHIA DO DESENVOLVIMENTO DOS VALES DO SÃO FRANCISCO E DO PARNAÍBA
C3: ÁREA DE IRRIGAÇÃO E OPERAÇÕES (AI)
B6: PLANILHA ORÇAMENTÁRIA - GERAL
B7: MUDAS PARA A ÁREA DE ATUAÇÃO DA CODEVASF
B9: ITEM | C9: CULTURA | D9: CULTIVAR | E9: ESPECIFICAÇÕES TÉCNICAS | F9: UNIDADE | G9: QUANTIDADE | H9: PREÇO UNITÁRIO | I9: CRITÉRIO DE CONSOLIDAÇÃO DO PREÇO UNITÁRIO | J9: PREÇO TOTAL
B10: 1 | C10: Abacate (Persea americana Mill.) | D10: Geada com porta-enxerto Comum | E10: Muda certificada de Abacate cultivar Geada com porta-enxerto Comum; com enxerto feito entre 5 a 10cm de altura, medidos a partir do colo da planta; apresentar diâmetro do enxerto o mínimo de 1cm, não apresentando diferença de mais de 0,5cm entre os diâmetros do enxerto e do porta-enxerto, medidos a 5cm do ponto de enxertia; com comprimento, a partir do colo, entre 30 e 50 cm; deverá ter haste única, ereta e perfeita; isenta de pragas e doenças; a idade não deverá ultrapassar 12 meses, contados a partir da semeadura do porta-enxerto; sistema radicular bem desenvolvido, sem raízes enoveladas, retorcidas ou quebradas; acondicionada em recipiente próprio para mudas com, no mínimo, 15cm de diâmetro e 30cm de altura; sem sintomas de estresse hídrico e nutricional; e com identificador unitário. | F10: unidade | G10: 3067 | H10: 29 | I10: Mediana; CV > 25%. | J10: =G10*H10 -> 88943
B11: 2 | C11: Abacate (Persea americana Mill.) | D11: Fortuna com porta-enxerto Comum | E11: Muda certificada de Abacate cultivar Fortuna com porta-enxerto Comum; com enxerto feito entre 5 a 10cm de altura, medidos a partir do colo da planta; apresentar diâmetro do enxerto o mínimo de 1cm, não apresentando diferença de mais de 0,5cm entre os diâmetros do enxerto e do porta-enxerto, medidos a 5cm do ponto de enxertia; com comprimento, a partir do colo, entre 30 e 50 cm; deverá ter haste única, ereta e perfeita; isenta de pragas e doenças; a idade não deverá ultrapassar 12 meses, contados a partir da semeadura do porta-enxerto; sistema radicular bem desenvolvido, sem raízes enoveladas, retorcidas ou quebradas; acondicionada em recipiente próprio para mudas com, no mínimo, 15cm de diâmetro e 30cm de altura; sem sintomas de estresse hídrico e nutricional; e com identificador unitário. | F11: unidade | G11: 3067 | H11: 29 | I11: Mediana; CV > 25%. | J11: =G11*H11 -> 88943
B12: 3 | C12: Abacate (Persea americana Mill.) | D12: Margarida com porta-enxerto Comum | E12: Muda certificada de Abacate cultivar Margarida com porta-enxerto Comum; com enxerto feito entre 5 a 10cm de altura, medidos a partir do colo da planta; apresentar diâmetro do enxerto o mínimo de 1cm, não apresentando diferença de mais de 0,5cm entre os diâmetros do enxerto e do porta-enxerto, medidos a 5cm do ponto de enxertia; com comprimento, a partir do colo, entre 30 e 50 cm; deverá ter haste única, ereta e perfeita; isenta de pragas e doenças; a idade não deverá ultrapassar 12 meses, contados a partir da semeadura do porta-enxerto; sistema radicular bem desenvolvido, sem raízes enoveladas, retorcidas ou quebradas; acondicionada em recipiente próprio para mudas com, no mínimo, 15cm de diâmetro e 30cm de altura; sem sintomas de estresse hídrico e nutricional; e com identificador unitário. | F12: unidade | G12: 9200 | H12: 40 | I12: Mediana; CV < 25%. | J12: 368000
B13: 4 | C13: Abacaxi (Ananas comosus L.) | D13: Pérola | E13: Muda certificada de abacaxi, cultivar Pérola; produzida a partir de propagação in vitro ou secção do caule. Se, oriunda de propagação in vitro: deverá ser submetida à aclimatização; ter, na ocasião da comercialização, no mínimo 25cm de comprimento e 100g de peso; o material de propagação utilizado na propagação in vitro deverá ser retirado de gema apical ou lateral; e o número de subcultivos não poderá ser superior a 5. Se, oriunda de secção do caule, na ocasião da comercialização, deverão apresentar comprimento mínimo de 25cm; peso mínimo de 150g; idade máxima de 12 meses, contada a partir do plantio das secções do caule; e raízes eliminadas. Não deve apresentar sintomas de estresse hídrico e nutricional; isentas de pragas e doenças; e com identificador unitário. | F13: unidade | G13: 248967 | H13: 4.44 | I13: - | J13: 1105413.48
B14: 5 | C14: Açaí (Euterpe oleracea Mart.) | D14: BRS Pai Dégua | E14: Muda certificada de Açaí cultivar BRS Pai Dégua; apresentando 5 folhas completamente expandidas; com altura total entre 50cm e 75cm, medidos da superfície do substrato à ponta da 5ª folha; apresentar diâmetro do caule superior a 14mm, medidos a 1cm da superfície do substrato; a idade não deverá ultrapassar 18 meses, a partir da repicagem da semente pré-germinada; sistema radicular bem desenvolvido, sem raízes enoveladas, retorcidas ou quebradas; acondicionada em recipiente próprio para mudas com, no mínimo, 11cm de diâmetro e 25cm de altura; isenta de pragas e doenças; sem sintomas de estresse hídrico e nutricional; e com identificador unitário. | F14: unidade | G14: 33334 | H14: 10 | I14: Mediana; CV > 25%. | J14: 333340
B15: 6 | C15: Acerola (Malpighia emarginata DC.) | D15: Sertaneja BRS 152 | E15: Muda certificada de Acerola cultivar Sertaneja BRS 152; produzida por estaquia; com comprimento, a partir do colo, entre 50 e 70 cm; ter haste única, ereta e perfeita; isenta de pragas e doenças; a idade não deverá ultrapassar 12 meses, a partir da estaquia; sistema radicular bem desenvolvido, sem raízes enoveladas, retorcidas ou quebradas; acondicionada em recipiente próprio para mudas com, no mínimo, 6,5cm de diâmetro e 25cm de altura; sem sintomas de estresse hídrico e nutricional; e com identificador unitário. | F15: unidade | G15: 186223 | H15: 30 | I15: Mediana; Menor Preço | J15: 5586690
B16: 7 | C16: Banana (Musa spp.) | D16: BRS Pacoua | E16: Muda certificada de Banana cultivar BRS Pacoua; produzida a partir de propagação in vitro; aclimatizada; diâmetro do pseudocaule com o mínimo de 1cm, medido a 5 cm a partir do coleto da planta; três folhas expandidas, no mínimo; presença de raízes ativas, com cor variando de branca a creme claro; comprimento de, no mínimo, 30cm; acondicionada em recipiente próprio para mudas com, no mínimo, 15cm de diâmetro e 25cm de altura; isenta de pragas e doenças; sem sintomas de estresse hídrico e nutricional; e com identificador unitário. | F16: unidade | G16: 4112 | H16: 7 | I16: - | J16: =G16*H16 -> 28784
B17: 8 | C17: Banana (Musa spp.) | D17: BRS Terra Anã | E17: Muda certificada de Banana cultivar BRS Terra Anã; produzida a partir de propagação in vitro; aclimatizada; diâmetro do pseudocaule com o mínimo de 1cm, medido a 5 cm a partir do coleto da planta; três folhas expandidas, no mínimo; presença de raízes ativas, com cor variando de branca a creme claro; comprimento de, no mínimo, 30cm; acondicionada em recipiente próprio para mudas com, no mínimo, 15cm de diâmetro e 25cm de altura; isenta de pragas e doenças; sem sintomas de estresse hídrico e nutricional; e com identificador unitário. | F17: unidade | G17: 9663 | H17: 11.17 | I17: Mediana; CV > 25%. | J17: 107935.71
B18: 9 | C18: Banana (Musa spp.) | D18: Nanicão - IAC 2001 | E18: Muda certificada de Banana cultivar Nanicão-IAC 2001; produzida a partir de propagação in vitro; aclimatizada; diâmetro do pseudocaule com o mínimo de 1cm, medido a 5 cm a partir do coleto da planta; três folhas expandidas, no mínimo; presença de raízes ativas, com cor variando de branca a creme claro; comprimento de, no mínimo, 30cm; acondicionada em recipiente próprio para mudas com, no mínimo, 15cm de diâmetro e 25cm de altura; isenta de pragas e doenças; sem sintomas de estresse hídrico e nutricional; e com identificador unitário. | F18: unidade | G18: 132984 | H18: 10.8 | I18: - | J18: =G18*H18 -> 1436227.2
B19: 10 | C19: Banana (Musa spp.) | D19: SCS451 Catarina (Prata Anã) | E19: Muda certificada de Banana cultivar SCS451 Catarina (Prata Anã); produzida a partir de propagação in vitro; aclimatizada; diâmetro do pseudocaule com o mínimo de 1cm, medido a 5 cm a partir do coleto da planta; três folhas expandidas, no mínimo; presença de raízes ativas, com cor variando de branca a creme claro; comprimento de, no mínimo, 30cm; acondicionada em recipiente próprio para mudas com, no mínimo, 15cm de diâmetro e 25cm de altura; isenta de pragas e doenças; sem sintomas de estresse hídrico e nutricional; e com identificador unitário. | F19: unidade | G19: 195981 | H19: 7.31 | I19: Media; | J19: =G19*H19 -> 1432621.11
B20: 11 | C20: Cacau (Theobroma cacao L.) | D20: CEPEC2176 com porta-enxerto CEPEC 2002 | E20: Muda certificada de Cacau cultivar CEPEC2176 com porta-enxerto CEPEC 2002; com enxerto feito acima de 15cm de altura, medidos a partir do colo da planta; apresentar 6 folhas totalmente expandidas; com comprimento, a partir do colo do porta-enxerto até a ponta da 6ª folha, entre 30 e 60 cm; deverá ter haste única, ereta e perfeita; isenta de pragas e doenças; a idade não deverá ultrapassar 18 meses, contados a partir da semeadura do porta-enxerto; sistema radicular bem desenvolvido, sem raízes enoveladas, retorcidas ou quebradas; acondicionada em recipiente próprio para mudas com, no mínimo, 15cm de diâmetro e 30cm de altura; sem sintomas de estresse hídrico e nutricional; e com identificador unitário. | F20: unidade | G20: 172044 | H20: 38.5 | I20: Mediana; CV > 25%. | J20: =G20*H20 -> 6623694
B21: 12 | C21: Cacau (Theobroma cacao L.) | D21: CEPEC2204 com porta-enxerto CEPEC 2002 | E21: Muda certificada de Cacau cultivar CEPEC2204 com porta-enxerto CEPEC 2002; com enxerto feito acima de 15cm de altura, medidos a partir do colo da planta; apresentar 6 folhas totalmente expandidas; com comprimento, a partir do colo do porta-enxerto até a ponta da 6ª folha, entre 30 e 60 cm; deverá ter haste única, ereta e perfeita; isenta de pragas e doenças; a idade não deverá ultrapassar 18 meses, contados a partir da semeadura do porta-enxerto; sistema radicular bem desenvolvido, sem raízes enoveladas, retorcidas ou quebradas; acondicionada em recipiente próprio para mudas com, no mínimo, 15cm de diâmetro e 30cm de altura; sem sintomas de estresse hídrico e nutricional; e com identificador unitário. | F21: unidade | G21: 182044 | H21: 38.5 | I21: Mediana; CV > 25%. | J21: 7008694
B22: 13 | C22: Café (Coffea arabica) | D22: Arara ou Catuaí amarelo ou Catuaí vermelho ou Paraíso | E22: Muda certificada de Café cultivar Arara ou Catuaí amarelo ou Catuaí vermelho ou Paraíso; oriunda de estacas (haste vegetativa - ramo ortotrópico); com no mínimo três e no máximo nove pares de folhas definitivas; medindo entre 15 a 30 cm de altura a partir da região de inserção; isenta de pragas e doenças; a idade não deverá ultrapassar 8 meses, contados a partir da estaquia ; sistema radicular bem desenvolvido, sem raízes enoveladas, retorcidas ou quebradas; acondicionada em recipiente próprio para mudas com, no mínimo, 15cm de diâmetro e 30cm de altura; sem sintomas de estresse hídrico e nutricional; e com identificador unitário; Em conformidade com a IN nº 35/2012 do MAPA. | F22: unidade | G22: 27778 | H22: 18.72 | I22: - | J22: 520004.16
B23: 14 | C23: Figueira (Ficus carica L.) | D23: Pingo de Mel | E23: Muda certificada de Figueira cultivar Pingo de Mel; oriunda de estaca enraiada; embalada individualmente, com altura entre 40 e 60 cm, medidos a partir do colo; deve estar acondicionada em recipiente próprio para mudas com dimensões mínimas de 15 cm de diâmetro e 25 cm de altura, e substrato não deverá conter solo; a idade não deverá ultrapassar 12 meses, contados a partir da estaquia; deve apresentar sistema radicular bem desenvolvido, sem raízes enoveladas, retorcidas ou quebradas; isenta de pragas e doenças; não deve apresentar sintomatologia de estresse hídrico, e com identificador unitário. | F23: unidade | G23: 36212 | H23: 30 | I23: Mediana; | J23: 1086360
B24: 15 | C24: Figueira (Ficus carica L.) | D24: Roxo de Valinhos | E24: Muda certificada de Figueira cultivar Roxo de Valinhos; oriunda de estaca enraiada; embalada individualmente, com altura entre 40 e 60 cm, medidos a partir do colo; deve estar acondicionada em recipiente próprio para mudas com dimensões mínimas de 15 cm de diâmetro e 25 cm de altura, e substrato não deverá conter solo; a idade não deverá ultrapassar 12 meses, contados a partir da estaquia; deve apresentar sistema radicular bem desenvolvido, sem raízes enoveladas, retorcidas ou quebradas; isenta de pragas e doenças; não deve apresentar sintomatologia de estresse hídrico, e com identificador unitário. | F24: unidade | G24: 36212 | H24: 13.65 | I24: Média; Menor Preço | J24: 494293.8
B25: 16 | C25: Goiaba (Psidium guajava L.) | D25: Cortibel RG com porta-enxerto BRS Guaraçá (Psidium guajava L. x Psidium guineense Sw.) | E25: Muda certificada de Goiaba cultivar Cortibel RG com porta-enxerto BRS Guaraçá (Psidium guajava L. x Psidium guineense Sw.); com enxerto feito entre 10 e 15cm de altura, medidos a partir do colo da planta; apresentar diâmetro do enxerto o mínimo de 1cm, não apresentando diferença de mais de 0,5cm entre os diâmetros do enxerto e do porta-enxerto, medidos a 5cm do ponto de enxertia; com comprimento, a partir do colo, entre 40 e 50 cm; ter haste única, ereta e perfeita; isenta de pragas e doenças; a idade não deverá ultrapassar 12 meses, contados a partir da semeadura do porta-enxerto; sistema radicular bem desenvolvido, sem raízes enoveladas, retorcidas ou quebradas; acondicionada em recipiente próprio para mudas com dimensões mínimas de 15cm de diâmetro e 25cm de altura; substrato não deverá conter solo; sem sintomas de estresse hídrico e nutricional; deverá ser comprovadamente isenta de nematóides do gênero Meloidogyne, mediante análise laboratorial; e com identificador unitário. | F25: unidade | G25: 20334 | H25: 20.33 | I25: Mediana; Menor Preço | J25: 413390.22
B26: 17 | C26: Goiaba (Psidium guajava L.) | D26: Paluma com porta-enxerto BRS Guaraçá (Psidium guajava L. x Psidium guineense Sw.) | E26: Muda certificada de Goiaba cultivar Paluma com porta-enxerto BRS Guaraçá (Psidium guajava L. x Psidium guineense Sw.); com enxerto feito entre 10 e 15cm de altura, medidos a partir do colo da planta; apresentar diâmetro do enxerto o mínimo de 1cm, não apresentando diferença de mais de 0,5cm entre os diâmetros do enxerto e do porta-enxerto, medidos a 5cm do ponto de enxertia; com comprimento, a partir do colo, entre 40 e 50 cm; ter haste única, ereta e perfeita; isenta de pragas e doenças; a idade não deverá ultrapassar 12 meses, contados a partir da semeadura do porta-enxerto; sistema radicular bem desenvolvido, sem raízes enoveladas, retorcidas ou quebradas; acondicionada em recipiente próprio para mudas com dimensões mínimas de 15cm de diâmetro e 25cm de altura; substrato não deverá conter solo; sem sintomas de estresse hídrico e nutricional; deverá ser comprovadamente isenta de nematóides do gênero Meloidogyne, mediante análise laboratorial; e com identificador unitário. | F26: unidade | G26: 132226 | H26: 20.45 | I26: Mediana; CV > 25%. | J26: 2704021.7
B27: 18 | C27: Graviola (Annona muricata L.) | E27: Muda oriunda de viveiro registrado no RENASEM de Graviola cultivar ; com comprimento, a partir do colo do porta-enxerto, entre 40 e 60 cm; com enxerto feito a 20cm de altura, medidos a partir do colo da planta; ter haste única, ereta e perfeita; isenta de pragas e doenças; a idade não deverá ultrapassar 12 meses, contados a partir da semeadura do porta-enxerto; com folhas bem nutridas e rustificadas; caule lenhoso com mínimo de 5 mm, medidos 5cm acima do enxerto; raízes sistema radicular bem desenvolvido, bem agregado ao substrato; sem raízes enoveladas, retorcidas ou quebradas; acondicionada em recipiente próprio para mudas com dimensões mínimas de 22cm de diâmetro e 35cm de altura; sem sintomas de estresse hídrico e nutricional; e com identificador unitário. | F27: unidade | G27: 12078 | H27: 19.31 | I27: Mediana; Menor Preço | J27: 233226.18
B28: 19 | C28: Laranja (Citrus sinensis (L.) Osbeck) | D28: Pera IAC com porta-enxerto limoeiro ‘Cravo’ (Citrus limonia Osbeck) | E28: Muda certificada de Laranja cultivar Pera IAC com porta-enxerto limoeiro ‘Cravo’ (Citrus limonia Osbeck); com enxerto feito entre 10 e 20cm de altura, medidos a partir do colo do porta-enxerto; o enxerto e o porta-enxerto deverão constituir haste única e ereta, tolerando-se uma pequena curvatura logo acima do ponto de enxertia de, no máximo, 15º, e apresentar diferença menor ou igual a 0,5cm entre seus diâmetros, medidos a 5cm acima e abaixo do ponto de enxertia; tecido amadurecido; ramos íntegros, sem danos físicos; com comprimento, a partir do colo, entre 50 e 60 cm; diâmetro mínimo de 0,5 cm, 5 cm acima do ponto de enxertia; corte do porta-enxerto cicatrizado; estar isenta de pragas e doenças; a idade não deverá ultrapassar 18 meses, contados a partir da semeadura do porta-enxerto; sistema radicular bem desenvolvido, com raiz principal maior que 20cm, radicelas ocupando todo ou quase todo o volume do substrato, sem raízes enoveladas, retorcidas ou quebradas; acondicionada em recipiente próprio para mudas com dimensões mínimas de 10cm de diâmetro e 30cm de altura; substrato não deverá conter solo; sem sintomas de estresse hídrico e nutricional; e com identificador unitário. | F28: unidade | G28: 72600 | H28: 19.12 | I28: Mediana; Menor Preço | J28: 1388112
B29: 20 | C29: Lima ácida Tahiti (Citrus latifolia (Yu. Tanaka) Tanaka) | D29: CPMF 01 ou CPMF 02 (Tahiti), com porta-enxerto Citrandarin ‘San Diego’ ou Citrandarin‘Riverside’ | E29: Muda certificada de Lima cultivar CPMF 01 ou CPMF 02 (Tahiti), com porta-enxerto Citrandarin ‘San Diego’ ou Citrandarin‘Riverside’; com enxerto feito entre 10 e 20cm de altura, medidos a partir do colo do porta-enxerto; o enxerto e o porta-enxerto deverão constituir haste única e ereta, tolerando-se uma pequena curvatura logo acima do ponto de enxertia de, no máximo, 15º, e apresentar diferença menor ou igual a 0,5cm entre seus diâmetros, medidos a 5cm acima e abaixo do ponto de enxertia; tecido amadurecido; ramos íntegros, sem danos físicos; com comprimento, a partir do colo, entre 50 e 60 cm; diâmetro mínimo de 0,5 cm, 5 cm acima do ponto de enxertia; corte do porta-enxerto cicatrizado; estar isenta de pragas e doenças; a idade não deverá ultrapassar 24 meses, contados a partir da semeadura do porta-enxerto; sistema radicular bem desenvolvido, com raiz principal maior que 20cm, radicelas ocupando todo ou quase todo o volume do substrato, sem raízes enoveladas, retorcidas ou quebradas; acondicionada em recipiente próprio para mudas com dimensões mínimas de 10cm de diâmetro e 30cm de altura; substrato não deverá conter solo; sem sintomas de estresse hídrico e nutricional; e com identificador unitário. | F29: unidade | G29: 177763.34 | H29: 20 | I29: Mediana; CV > 25%. | J29: 3555266.8
B30: 21 | C30: Manga (Mangifera indica L.) | D30: Palmer com porta-enxerto IAC 101 Coquinho | E30: Muda certificada de Manga cultivar Palmer com porta-enxerto IAC 101 Coquinho; com enxerto feito, no mínimo a 15cm de altura, medidos a partir do colo da planta; não apresentar diferença de mais de 1cm entre os diâmetros do enxerto e do porta-enxerto, medidos a 5cm do ponto de enxertia; com comprimento, a partir do colo, entre 50 e 70 cm; ter haste única, ereta e perfeita; isenta de pragas e doenças; a idade não deverá ultrapassar 18 meses, contados a partir da semeadura do porta-enxerto; sistema radicular bem desenvolvido, sem raízes enoveladas, retorcidas ou quebradas; acondicionada em recipiente próprio para mudas com dimensões mínimas de 15cm de diâmetro e 30cm de altura; sem sintomas de estresse hídrico e nutricional; e com identificador unitário. | F30: unidade | G30: 7778 | H30: 12 | I30: Mediana; CV > 25%. | J30: =G30*H30 -> 93336
B31: 22 | C31: Manga (Mangifera indica L.) | D31: Tommy Atkins com porta-enxerto IAC 101 Coquinho | E31: Muda certificada de Manga cultivar Tommy Atkins com porta-enxerto IAC 101 Coquinho; com enxerto feito, no mínimo a 15cm de altura, medidos a partir do colo da planta; não apresentar diferença de mais de 1cm entre os diâmetros do enxerto e do porta-enxerto, medidos a 5cm do ponto de enxertia; com comprimento, a partir do colo, entre 50 e 70 cm; ter haste única, ereta e perfeita; isenta de pragas e doenças; a idade não deverá ultrapassar 18 meses, contados a partir da semeadura do porta-enxerto; sistema radicular bem desenvolvido, sem raízes enoveladas, retorcidas ou quebradas; acondicionada em recipiente próprio para mudas com dimensões mínimas de 15cm de diâmetro e 30cm de altura; sem sintomas de estresse hídrico e nutricional; e com identificador unitário. | F31: unidade | G31: 39149 | H31: 18.5 | I31: Mediana; CV > 25%. | J31: =G31*H31 -> 724256.5
B32: 23 | C32: Manga (Mangifera indica L.) | D32: Rosa com porta-enxerto IAC 101 Coquinho | E32: Muda certificada de Manga cultivar Rosa com porta-enxerto IAC 101 Coquinho; com enxerto feito, no mínimo a 15cm de altura, medidos a partir do colo da planta; não apresentar diferença de mais de 1cm entre os diâmetros do enxerto e do porta-enxerto, medidos a 5cm do ponto de enxertia; com comprimento, a partir do colo, entre 50 e 70 cm; ter haste única, ereta e perfeita; isenta de pragas e doenças; a idade não deverá ultrapassar 18 meses, contados a partir da semeadura do porta-enxerto; sistema radicular bem desenvolvido, sem raízes enoveladas, retorcidas ou quebradas; acondicionada em recipiente próprio para mudas com dimensões mínimas de 15cm de diâmetro e 30cm de altura; sem sintomas de estresse hídrico e nutricional; e com identificador unitário. | F32: unidade | G32: 31371 | H32: 45 | I32: Média; Menor Preço | J32: =G32*H32 -> 1411695
B33: 24 | C33: Manga (Mangifera indica L.) | D33: Espada com porta-enxerto IAC 101 Coquinho | E33: Muda certificada de Manga cultivar Espada com porta-enxerto IAC 101 Coquinho; com enxerto feito, no mínimo a 15cm de altura, medidos a partir do colo da planta; não apresentar diferença de mais de 1cm entre os diâmetros do enxerto e do porta-enxerto, medidos a 5cm do ponto de enxertia; com comprimento, a partir do colo, entre 50 e 70 cm; ter haste única, ereta e perfeita; isenta de pragas e doenças; a idade não deverá ultrapassar 18 meses, contados a partir da semeadura do porta-enxerto; sistema radicular bem desenvolvido, sem raízes enoveladas, retorcidas ou quebradas; acondicionada em recipiente próprio para mudas com dimensões mínimas de 15cm de diâmetro e 30cm de altura; sem sintomas de estresse hídrico e nutricional; e com identificador unitário. | F33: unidade | G33: 31371 | H33: 13.08 | I33: Mediana; CV > 25%. | J33: =G33*H33 -> 410332.68
B34: 25 | C34: Maracujá (Passiflora foetida L.) | D34: UFERSA BRSRM 153 | E34: Muda certificada de Maracujá cultivar UFERSA BRSRM 153; oriunda da semeadura de sementes; com altura total entre 15cm e 30cm, medidos a partir do colo; a idade não deverá ultrapassar 70 dias, a partir da semeadura; sistema radicular bem desenvolvido, sem raízes enoveladas, retorcidas ou quebradas; acondicionada em recipiente próprio para mudas com, no mínimo, 10cm de diâmetro e 20cm de altura; substrato não deverá conter solo; isenta de pragas e doenças; sem sintomas de estresse hídrico e nutricional; e com identificador unitário. | F34: unidade | G34: 33334 | H34: 20 | I34: Mediana; Menor Preço | J34: =G34*H34 -> 666680
B35: 26 | C35: Maracujá (Passiflora spp.) | D35: FB 200 e FB 300 | E35: Muda certificada de Maracujá cultivar FB 200 e FB 300; oriunda da semeadura de sementes; com altura total entre 15cm e 30cm, medidos a partir do colo; a idade não deverá ultrapassar 70 dias, a partir da semeadura; sistema radicular bem desenvolvido, sem raízes enoveladas, retorcidas ou quebradas; acondicionada em recipiente próprio para mudas com, no mínimo, 10cm de diâmetro e 20cm de altura; substrato não deverá conter solo; isenta de pragas e doenças; sem sintomas de estresse hídrico e nutricional; e com identificador unitário. | F35: unidade | G35: 268646 | H35: 6.19 | I35: - | J35: 1662918.74
B36: 27 | C36: Morango (Fragaria ananassa Duch.) | D36: Camarosa ou BRS DC25 (Fênix) | E36: Muda certificada de Morango cultivar Camarosa ou BRS DC25 (Fênix), oriunda de plantas matrizes, produzidas por cultivo in vitro; com pelo menos três folhas expandidas, com altura mínima de 5 cm, medida a partir do ponto de inserção; estar isenta de pragas e doenças; apresentar sistema radicular isento de agentes parasitas e ervas daninhas; acondicionada em recipiente próprio para mudas, não devendo apresentar sintomas de estresse hídrico e nutricional; e com identificador unitário; em conformidade com a IN nº 28/2022 do MAPA. | F36: Cento | G36: 124445 | H36: 7.41 | I36: Média; Menor Preço | J36: 922137.45
B37: 28 | C37: Pinha (Annona squamosa L.) | D37: Ata ou Pinha FAO I ou Pinha AP ou Pinha FAO II com porta-enxerto Comum | E37: Muda oriunda de viveiro registrado no RENASEM de Pinha cultivar Ata ou Pinha FAO I ou Pinha AP ou Pinha FAO II com porta-enxerto Comum; com comprimento, a partir do colo do porta-enxerto, entre 40 e 60 cm; ter haste única, ereta e perfeita; isenta de pragas e doenças; a idade não deverá ultrapassar 12 meses, contados a partir da semeadura do porta-enxerto; com folhas bem nutridas e rustificadas; caule lenhoso com mínimo de 5 mm, medidos 5cm acima do enxerto; raízes sistema radicular bem desenvolvido, bem agregado ao substrato; sem raízes enoveladas, retorcidas ou quebradas; acondicionada em recipiente próprio para mudas com dimensões mínimas de 15cm de diâmetro e 30cm de altura; sem sintomas de estresse hídrico e nutricional; e com identificador unitário. | F37: unidade | G37: 93223 | H37: 45.02 | I37: Média; Menor Preço | J37: 4196899.46
B38: 29 | C38: Pitanga (Eugenia uniflora L.) | D38: "Tropicana" com porta-enxerto Comum | E38: Muda oriunda de viveiro registrado no RENASEM de Pitanga cultivar "Tropicana" com porta-enxerto Comum; com comprimento, a partir do colo do porta-enxerto, entre 40 e 60 cm; ter haste única, ereta e perfeita; isenta de pragas e doenças; a idade não deverá ultrapassar 12 meses, contados a partir da semeadura do porta-enxerto; caule lenhoso com mínimo de 5 mm, medidos 5cm acima do enxerto; raízes sistema radicular bem desenvolvido, bem agregado ao substrato; sem raízes enoveladas, retorcidas ou quebradas; acondicionada em recipiente próprio para mudas com dimensões mínimas de 8cm de diâmetro e 15cm de altura; sem sintomas de estresse hídrico e nutricional; e com identificador unitário. | F38: unidade | G38: 13577 | H38: 8.71 | I38: Mediana; Menor Preço | J38: 118255.67
B39: 30 | C39: Tangerina (Citrus reticulata Blanco = Citrus tangerina Tanaka) | D39: Tangerina Ponkan IAC, com porta-enxerto em Limão cravo (Citrus limonia Osbeck) | E39: Muda certificada de Tangerina cultivar Tangerina Ponkan IAC, com porta-enxerto em Limão cravo (Citrus limonia Osbeck); com enxerto feito entre 10 e 20cm de altura, medidos a partir do colo do porta-enxerto; o enxerto e o porta-enxerto deverão constituir haste única e ereta, tolerando-se uma pequena curvatura logo acima do ponto de enxertia de, no máximo, 15º, e apresentar diferença menor ou igual a 1cm entre seus diâmetros, medidos a 5cm acima e abaixo do ponto de enxertia; tecido amadurecido; ramos íntegros, sem danos físicos; com comprimento, a partir do colo, entre 30 e 50 cm; diâmetro mínimo de 0,5 cm, 5 cm acima do ponto de enxertia; corte do porta-enxerto cicatrizado; estar isenta de pragas e doenças; a idade não deverá ultrapassar 18 meses, contados a partir da semeadura do porta-enxerto; sistema radicular bem desenvolvido, com raiz principal maior que 20cm, radicelas ocupando todo ou quase todo o volume do substrato, sem raízes enoveladas, retorcidas ou quebradas; acondicionada em recipiente próprio para mudas com dimensões mínimas de 10cm de diâmetro e 30cm de altura; substrato não deverá conter solo; sem sintomas de estresse hídrico e nutricional; e com identificador unitário. | F39: unidade | G39: 55955 | H39: 16.49 | I39: Medinaa; | J39: 922697.95
B40: 31 | C40: Uva (Vitis vinifera L.) | D40: Malbech | E40: Muda certificada de Uva cultivar Malbech; apresentar o diâmetro de 0,8 a 2,0cm, a 5cm acima do ponto de enxertia; enxerto e porta-enxerto apresentando, a 5cm do ponto de enxertia, o mesmo diâmetro, tolerando-se uma variação máxima de 25% entre ambos; a soldadura da enxertia perfeitamente cicatrizada; com comprimento mínimo de 60 cm e pelo menos 3 gemas viáveis, a partir do ponto de enxertia; porta-enxerto com o comprimento total não inferior a 30cm, apresentando a partir do ponto de enxertia uma zona não-enraizada de no mínimo 15cm; ter haste única e lenho perfeitamente amadurecido; estar isenta de pragas e doenças; a idade não deverá ultrapassar 24 meses, a partir da data da enxertia; apresentar sistema radicular abundante e convenientemente aparado e ser devidamente protegidas com material não-fermentescível e úmido, isento de agentes parasitas e ervas daninhas, com embalagem externa de plástico perfurado ou aniagem; e com identificador unitário. | F40: unidade | G40: 394216 | H40: 55.13 | I40: - | J40: 21733128.08
B41: 32 | C41: Uva (Vitis vinifera L.) | D41: Sauvignon Blanc | E41: Muda certificada de Uva cultivar Sauvignon Blanc; apresentar o diâmetro de 0,8 a 2,0cm, a 5cm acima do ponto de enxertia; enxerto e porta-enxerto apresentando, a 5cm do ponto de enxertia, o mesmo diâmetro, tolerando-se uma variação máxima de 25% entre ambos; a soldadura da enxertia perfeitamente cicatrizada; com comprimento mínimo de 60 cm e pelo menos 3 gemas viáveis, a partir do ponto de enxertia; porta-enxerto com o comprimento total não inferior a 30cm, apresentando a partir do ponto de enxertia uma zona não-enraizada de no mínimo 15cm; ter haste única e lenho perfeitamente amadurecido; estar isenta de pragas e doenças; a idade não deverá ultrapassar 24 meses, a partir da data da enxertia; apresentar sistema radicular abundante e convenientemente aparado e ser devidamente protegidas com material não-fermentescível e úmido, isento de agentes parasitas e ervas daninhas, com embalagem externa de plástico perfurado ou aniagem; e com identificador unitário. | F41: unidade | G41: 394216 | H41: 50.13 | I41: - | J41: =G41*H41 -> 19762048.08
B42: TOTAL | J42: =SUM(J10:J41) -> 87228345.97
